[Event "Marshall CC FIDE Premier April 2024"]
[Site "New York"]
[Date "2024.04.14"]
[Round "3.10"]
[White "Berg, George"]
[Black "Lee, Rohan"]
[Result "0-1"]
[ECO "B75"]
[WhiteElo "1832"]
[BlackElo "1913"]
[Annotator "RC"]
[PlyCount "66"]
[EventDate "2024.02.02"]
[EventType "swiss"]
[EventCountry "USA"]
[SourceTitle "playchess.com"]
[Source "ChessBase"]
[SourceQuality "1"]
[TimeControl "5400+30"]

1. e4 {[%emt 0:00:02]} c5 {[%emt 0:00:01]} 2. Nf3 {[%emt 0:00:09]} d6 {[%emt 0:00:09]} 3. d4 {[%emt 0:00:04]} cxd4 {[%emt 0:00:09]} 4. Nxd4 {[%emt 0:00:03]} Nf6 {[%emt 0:00:10]} 5. Nc3 {[%emt 0:00:05]} g6 {[%emt 0:00:08]} 6. Be3 {[%emt 0:00:07]} Bg7 {[%emt 0:00:05]} 7. f3 {[%emt 0:00:05]} a6 {[%emt 0:00:03]} 8. Qd2 {[%emt 0:02:19]} h5 {[%emt 0:00:11]} 9. Bc4 {[%emt 0:01:42]} Nbd7 {[%emt 0:00:10]} 10. O-O-O {[%emt 0:01:34]} Qc7 {[%emt 0:00:37]} 11. Bb3 {[%emt 0:00:15]} b5 {[%emt 0:00:12]} 12. Nd5 {[%emt 0:01:10]} Nxd5 {[%emt 0:01:00]} 13. Bxd5 {[%emt 0:00:16]} Bb7 {[%emt 0:00:08]} 14. Kb1 {[%emt 0:01:04]} Ne5 {[%emt 0:01:27]} 15. Qe2 {[%emt 0:03:42]} Rc8 {[%emt 0:06:54]} 16. Rhe1 {[%emt 0:04:53]} Nc4 {[%emt 0:03:25]} 17. Bc1 {[%emt 0:00:08]} O-O {[%emt 0:09:58]} 18. Bxb7 {[%emt 0:13:43]} Qxb7 {[%emt 0:00:37]} 19. f4 {[%emt 0:00:24]} Qb6 {[%emt 0:06:01]} 20. Nf3 {[%emt 0:05:44]} Bc3 {[%emt 0:17:28]} 21. Rf1 {[%emt 0:03:11]} b4 {[%emt 0:02:11]} 22. b3 {[%emt 0:07:01]} Na3+ {[%emt 0:08:06]} 23. Bxa3 {[%emt 0:00:08]} bxa3 {[%emt 0:00:07]} 24. f5 {[%emt 0:03:49]} Bf6 {[%emt 0:13:23]} 25. c4 {[%emt 0:05:45]} a5 {[%emt 0:01:03]} 26. fxg6 {[%emt 0:02:50]} fxg6 {[%emt 0:00:32]} 27. Qd3 {[%emt 0:00:27]} a4 {[%emt 0:00:41]} 28. e5 {[%emt 0:03:18]} Bg7 {[%emt 0:08:38]} 29. Qxg6 {[%emt 0:11:54]} axb3 {[%emt 0:01:02]} 30. Rd2 {[%emt 0:00:08]} Rb8 {[%emt 0:03:11]} 31. Kc1 {[%emt 0:06:52]} bxa2 {[%emt 0:02:19]} 32. Rxa2 {[%emt 0:00:11]} Qe3+ {[%emt 0:02:01]} 33. Rd2 {[%emt 0:04:51]} a2 {[%emt 0:00:56]} 0-1

[Event "Marshall CC FIDE Premier April 2024"]
[Site "New York"]
[Date "2024.04.14"]
[Round "4.1"]
[White "Muthukumar, Haari"]
[Black "Huston, Gus"]
[Result "1-0"]
[ECO "C07"]
[WhiteElo "2048"]
[BlackElo "2401"]
[Annotator "TA"]
[PlyCount "69"]
[EventDate "2024.02.02"]
[EventType "swiss"]
[EventCountry "USA"]
[SourceTitle "playchess.com"]
[Source "ChessBase"]
[SourceQuality "1"]
[TimeControl "5400+30"]

{[%evp 13,69,18,41,40,112,106,99,104,85,57,106,108,172,186,310,154,169,170,186,171,179,179,169,172,269,292,343,286,331,343,333,329,1561,695,1034,364,466,464,432,128,171,115,211,46,42,58,44,30,166,80,150,140,926,911,29989,29990,29995,29996]} 1. e4 {[%emt 0:00:01]} e6 {[%emt 0:07:13]} 2. d4 {[%emt 0:00:26]} d5 {[%emt 0:00:08]} 3. Nd2 {[%emt 0:00:22][%cal Bb1d2,Bd2e4,Be4g5][%mdl 32]} c5 {[%emt 0:00:13]} 4. exd5 {[%emt 0:00:09]} Qxd5 {[%emt 0:00:03]} 5. Ngf3 {[%emt 0:00:09]} cxd4 {[%emt 0:00:03]} 6. Bc4 {[%emt 0:00:08]} Qd6 {[%emt 0:00:03]} 7. O-O {[%emt 0:00:10]} Nc6 {[%emt 0:00:51]} 8. Ne4 {[%emt 0:00:49]} Qc7 {[%emt 0:04:45]} ({Black should play} 8... Qd7 $14) 9. Nxd4 $16 {[%emt 0:02:51]} a6 {[%emt 0:00:02] Repels Nb5} 10. Re1 {[%emt 0:14:57] Nxc6 is the strong threat. White is much more active. White is better.} Be7 {[%emt 0:00:58]} 11. Bg5 {[%emt 0:10:59] aiming for Nxc6.} Bxg5 {[%emt 0:24:21]} (11... h6 $1 $14 {deserves consideration.} 12. Bxe7 Ngxe7) 12. Nxg5 {[%emt 0:02:07]} Nd8 {[%emt 0:08:24]} (12... Nf6 $16 {is a better defense.}) 13. Nf5 $18 {[%emt 0:06:14] And now Qd4 would win.} Kf8 {[%emt 0:05:15]} (13... h6 $142) 14. Nd6 {[%emt 0:06:36]} (14. Qd2 $18 {and White stays clearly on top.} exf5 15. Qb4+ Ne7 16. Rad1) 14... Nf6 $16 {[%emt 0:00:17]} 15. Qd4 {[%emt 0:04:19]} h6 {[%emt 0:02:38]} 16. Nge4 {[%emt 0:00:26]} Nc6 {[%emt 0:02:52]} 17. Qc5 {[%emt 0:03:15]} Nxe4 {[%emt 0:07:31]} 18. Rxe4 {[%emt 0:02:31]} (18. Nxe4+ Kg8 $11) 18... b6 {[%emt 0:01:06]} (18... Kg8 $142 19. Re3 b6) 19. Qa3 $18 {[%emt 0:01:10]} (19. Nxc8+ $2 bxc5 20. Bd3 a5 $19 (20... Rxc8 $2 21. Bxa6 Rd8 22. Bd3 $19) (20... Qxc8 $2 21. c3 $19)) 19... Qe7 {[%emt 0:01:45]} 20. Rf4 {[%emt 0:06:59]} Ne5 {[%emt 0:02:12]} 21. Re1 {[%emt 0:03:34]} g5 {[%emt 0:03:12]} 22. Rd4 {[%emt 0:09:57] Black must now prevent Nf5.} Ng6 $2 {[%emt 0:06:44]} (22... f6 23. f4 Nxc4 24. Rxc4 Bd7) 23. Qf3 {[%emt 0:01:48]} (23. Nf5 $142 exf5 24. Rxe7 Nxe7 25. Rd8+ Kg7 26. Qxe7 (26. Qc3+ f6 $18)) 23... Rb8 {[%emt 0:00:44] Black is weak on the light squares} 24. Bd3 $2 {[%emt 0:05:02]} (24. Nxc8 Qb7 25. Rd8+ (25. Bxe6 Qxf3 26. gxf3 fxe6 $18) 25... Kg7 26. Qc3+ Kh7 27. Rxh8+ Nxh8 28. Bd3+ Kg8 29. Nd6) 24... Rg8 {[%emt 0:08:53]} 25. Qh5 {[%emt 0:02:21]} Qf6 {[%emt 0:00:55]} 26. Bxg6 $2 {[%emt 0:05:28]} (26. Qxh6+ $18 {is the precise move to win.} Ke7 27. Bxg6 fxg6 28. Rc4) 26... Rxg6 {[%emt 0:01:04]} 27. Rd3 {[%emt 0:01:29]} ({White should try} 27. Rdd1 $18) 27... Bb7 {[%emt 0:00:28]} (27... e5 $16) 28. Nxb7 $2 {[%emt 0:00:34]} (28. Nc4 $1 $18 {[%cal Rc4e5] Strongly threatening Ne5!} Qf4 29. Ne5 (29. Nxb6 Bc6 $17)) 28... Rxb7 $14 {[%emt 0:00:04]} 29. Rf3 $36 {[%emt 0:00:18][%mdl 2048] White fights for an advantage.} Qg7 {[%emt 0:00:13]} 30. Rd1 {[%emt 0:00:27] Against Rd7} Ke7 {[%emt 0:01:23] Repels Rd8} (30... Rb8 $11 {and Black is okay.}) 31. Rc3 {[%emt 0:00:41]} (31. Qg4 $1 $18 {[%cal Rg4b4] is more deadly.} Qe5 (31... Qxb2 $2 {loses.} 32. Qe4 $18) 32. Rxf7+ Kxf7 33. Qf3+ Rf6 34. Qxb7+ Kg6 35. Qxb6 (35. Qxa6 Qxb2 36. Qc8 g4 $18)) 31... Qe5 {[%emt 0:00:26] [#]} (31... g4 $142) 32. Qf3 $1 $16 {[%emt 0:00:22]} Rc7 {[%emt 0:03:06][%mdl 8192] [#]} (32... Qb8 $16 33. Rc6 Qe5 34. Qa3+ Kf6) 33. Qa8 $1 $18 {[%emt 0:00:22]} Rd7 {[%emt 0:01:29] Repels Qd8+} 34. Rxd7+ {[%emt 0:00:24]} Kxd7 {[%emt 0:00:01]} 35. Qb7+ {[%emt 0:01:22] Weighted Error Value: White=0.77/Black=0.60.  Loses game:     	---       	Black=1      Missed win:     	White=2     	---        Mistake:       	White=4     	Black=9      Inaccurate:     	White=1     	Black=3      OK:         	White=8     	Black=9      Best:        	White=2     	---        Strong:       	White=1     	---} ({Not} 35. Qxa6 Qe1+ 36. Qf1 Qxf1+ 37. Kxf1 h5 38. Rd3+ Kc6 $18) 1-0

[Event "Marshall CC FIDE Premier April 2024"]
[Site "New York"]
[Date "2024.04.14"]
[Round "4.2"]
[White "Putnam, Liam"]
[Black "Ho, Carter"]
[Result "1-0"]
[ECO "A06"]
[WhiteElo "2323"]
[BlackElo "2108"]
[Annotator "RC"]
[PlyCount "55"]
[EventDate "2024.02.02"]
[EventType "swiss"]
[EventCountry "USA"]
[SourceTitle "playchess.com"]
[Source "ChessBase"]
[SourceQuality "1"]
[TimeControl "5400+30"]

1. Nf3 {[%emt 0:01:00]} d5 {[%emt 0:00:07]} 2. e3 {[%emt 0:00:30]} c5 {[%emt 0:00:21]} 3. b3 {[%emt 0:01:03]} Nc6 {[%emt 0:00:53]} 4. Bb2 {[%emt 0:00:05]} Nf6 {[%emt 0:00:06]} 5. Bb5 {[%emt 0:00:17]} Bd7 {[%emt 0:00:11]} 6. O-O {[%emt 0:01:38]} e6 {[%emt 0:00:46]} 7. d3 {[%emt 0:00:17]} Bd6 {[%emt 0:01:09]} 8. Nbd2 {[%emt 0:00:51]} a6 {[%emt 0:08:27]} 9. Bxc6 {[%emt 0:00:04]} Bxc6 {[%emt 0:00:04]} 10. Ne5 {[%emt 0:00:19]} Rc8 {[%emt 0:04:44]} 11. f4 {[%emt 0:00:28]} O-O {[%emt 0:02:40]} 12. Qe1 {[%emt 0:14:06]} Nd7 {[%emt 0:02:48]} 13. a4 {[%emt 0:15:59]} b6 {[%emt 0:19:09]} 14. Nxc6 {[%emt 0:04:30]} Rxc6 {[%emt 0:00:43]} 15. e4 {[%emt 0:00:13]} b5 {[%emt 0:20:33]} 16. Qg3 {[%emt 0:02:24]} d4 {[%emt 0:01:32]} 17. e5 {[%emt 0:01:27]} Bc7 {[%emt 0:02:45]} 18. Qf3 {[%emt 0:00:25]} Nb8 {[%emt 0:01:07]} 19. axb5 {[%emt 0:00:55]} axb5 {[%emt 0:31:55]} 20. Ra8 {[%emt 0:00:06]} Qd7 {[%emt 0:00:00]} 21. Ne4 {[%emt 0:00:56]} c4 {[%emt 0:00:00]} 22. bxc4 {[%emt 0:01:04]} bxc4 {[%emt 0:00:00]} 23. Ba3 {[%emt 0:00:19]} Rd8 {[%emt 0:00:00]} 24. Rb1 {[%emt 0:01:15]} cxd3 {[%emt 0:00:00]} 25. cxd3 {[%emt 0:02:28]} Qd5 {[%emt 0:00:00]} 26. Nf6+ {[%emt 0:02:43]} gxf6 {[%emt 0:00:00]} 27. Qg3+ {[%emt 0:00:03]} Kh8 {[%emt 0:00:00]} 28. Be7 {[%emt 0:00:05]} 1-0

[Event "Marshall CC FIDE Premier April 2024"]
[Site "New York"]
[Date "2024.04.14"]
[Round "4.3"]
[White "Lin, Bryan Enming"]
[Black "Bonin, Jay"]
[Result "1-0"]
[ECO "B10"]
[WhiteElo "2087"]
[BlackElo "2146"]
[Annotator "TA"]
[PlyCount "74"]
[EventDate "2024.02.02"]
[EventType "swiss"]
[EventCountry "USA"]
[SourceTitle "playchess.com"]
[Source "ChessBase"]
[SourceQuality "1"]
[TimeControl "5400+30"]

{[%evp 9,74,5,8,-6,0,0,37,-18,-2,-10,23,0,0,0,0,0,0,-33,45,0,12,0,0,-52,-67,-50,-38,-30,-42,-35,-39,-47,-35,-55,248,251,316,265,270,275,260,218,256,268,286,152,155,139,118,119,423,135,344,364,379,349,360,364,385,373,366,351,405,402,374,356,5406]} 1. e4 {[%emt 0:00:03]} c6 {[%emt 0:00:06]} 2. Nf3 {[%emt 0:00:11]} a6 {[%emt 0:00:09]} 3. d4 {[%emt 0:00:26]} d5 {[%emt 0:00:04]} 4. exd5 {[%emt 0:00:26]} cxd5 {[%emt 0:00:07]} 5. Ne5 {[%emt 0:00:17]} Nc6 {[%emt 0:00:29]} 6. c4 {[%emt 0:01:18]} Nxe5 {[%emt 0:03:01]} 7. dxe5 {[%emt 0:00:12]} d4 {[%emt 0:04:44]} 8. Bf4 {[%emt 0:01:28] [#]} (8. f4 $14) 8... g5 $1 $11 {[%emt 0:02:06]} 9. Bg3 {[%emt 0:03:24]} Bg7 {[%emt 0:00:55][%cal Og7e5]} 10. Qd2 {[%emt 0:01:53][%cal Of1d3]} h5 {[%emt 0:05:57] And now ...h4 would win.} 11. h4 {[%emt 0:02:37]} (11. Qxg5 Bh6 12. Qh4 Qa5+ 13. Kd1 Bf5) 11... g4 {[%emt 0:01:53]} 12. Bd3 {[%emt 0:00:54]} Nh6 $1 {[%emt 0:03:52][%cal Bg8h6,Bh6f5,Bf5h4][%mdl 32]} 13. O-O {[%emt 0:05:01]} Bf5 {[%emt 0:01:25]} ({Better is} 13... Nf5 $1 $15) 14. Na3 {[%emt 0:09:29]} Qd7 {[%emt 0:10:24]} 15. Rfe1 {[%emt 0:02:16]} Bxd3 {[%emt 0:01:22]} 16. e6 {[%emt 0:00:53]} ({White should try} 16. Qxd3 $11 O-O 17. Nc2) 16... fxe6 $15 {[%emt 0:00:14]} 17. Qxd3 {[%emt 0:00:04]} Nf5 {[%emt 0:00:23]} 18. Be5 {[%emt 0:00:18]} Bxe5 {[%emt 0:04:05]} 19. Rxe5 {[%emt 0:00:05]} Nxh4 {[%emt 0:00:34]} 20. Rae1 {[%emt 0:01:29]} Rh6 {[%emt 0:02:15]} 21. Qd2 {[%emt 0:05:00]} Rh8 {[%emt 0:08:40][%mdl 8192]} (21... Rf6 $1 $15 {stays ahead.} 22. Rxh5 Ng6) 22. Qg5 $1 $18 {[%emt 0:02:59]} (22. Rxe6 O-O-O $14) 22... Nf5 {[%emt 0:01:23]} 23. Rxe6 {[%emt 0:01:29] Black must now prevent Qg6+.} Rf8 {[%emt 0:01:17]} 24. Qxh5+ {[%emt 0:00:20]} Kd8 {[%emt 0:00:03]} 25. R6e5 {[%emt 0:03:50]} g3 {[%emt 0:02:29]} 26. fxg3 {[%emt 0:03:09]} e6 {[%emt 0:01:33] Against Rd5} 27. Rxe6 {[%emt 0:05:06]} ({White should play} 27. g4 $18 Ne3 28. Re4) 27... d3 $16 {[%emt 0:01:55] [#]} 28. Qg5+ $1 {[%emt 0:01:26]} Kc8 {[%emt 0:02:15]} 29. R6e4 {[%emt 0:03:51] Inhibits Qd4+. Hoping for g4.} Qc6 $2 {[%emt 0:24:19][%mdl 8192]} (29... b5 $16 {is a better chance.}) 30. Qf4 $2 {[%emt 0:05:06]} (30. Re5 $18 {is more deadly.} Qf6 31. Qf4 (31. Qxf6 Rxf6 32. Rd1 Kd7 $18)) 30... Kd7 $2 {[%emt 0:01:21]} (30... Qb6+ $16 31. Qf2 Qxf2+ 32. Kxf2 Kc7) 31. Re5 $18 {[%emt 0:03:49]} Rae8 {[%emt 0:01:14]} 32. Rxe8 {[%emt 0:05:00]} Qc5+ {[%emt 0:00:10]} 33. Qf2 {[%emt 0:01:06] White is winning.} ({But not} 33. R8e3 $2 Nxe3 $19 (33... d2 $2 34. Rd1 $19) (33... d2 $2 34. Rd1 $19)) 33... Qxf2+ 34. Kxf2 {[%emt 0:00:01]} Rxe8 {[%emt 0:03:04]} 35. Rxe8 {[%emt 0:00:14]} Kxe8 {[%emt 0:00:16]} 36. Nb1 {[%emt 0:00:34]} Ke7 {[%emt 0:00:26]} 37. g4 {[%emt 0:00:16]} Kd8 $2 {[%emt 0:14:30] Weighted Error Value: White=0.36/Black=0.47.  Loses game:     	---       	Black=3      Missed win:     	White=1     	---        Mistake:       	White=3     	Black=2      Inaccurate:     	White=2     	Black=2      OK:         	White=10    	Black=9      Best:        	White=3     	Black=8      Strong:       	White=2     	Black=1      Brilliant:      	---       	Black=1} (37... Nh6 38. Kf3 Kf6) 1-0

[Event "Marshall CC FIDE Premier April 2024"]
[Site "New York"]
[Date "2024.04.14"]
[Round "4.4"]
[White "Li, Michael"]
[Black "Ayyappan, Santhosh"]
[Result "1/2-1/2"]
[ECO "C45"]
[WhiteElo "2072"]
[BlackElo "1922"]
[Annotator "RC"]
[PlyCount "127"]
[EventDate "2024.02.02"]
[EventType "swiss"]
[EventCountry "USA"]
[SourceTitle "playchess.com"]
[Source "ChessBase"]
[SourceQuality "1"]
[TimeControl "5400+30"]

1. e4 {[%emt 0:00:02]} e5 {[%emt 0:10:37]} 2. Nf3 {[%emt 0:00:11]} Nc6 {[%emt 0:00:17]} 3. d4 {[%emt 0:00:19]} exd4 {[%emt 0:00:18]} 4. Nxd4 {[%emt 0:00:07]} Nf6 {[%emt 0:00:49]} 5. Nxc6 {[%emt 0:00:08]} bxc6 {[%emt 0:00:05]} 6. e5 {[%emt 0:00:14]} Qe7 {[%emt 0:00:16]} 7. Qe2 {[%emt 0:00:08]} Nd5 {[%emt 0:00:08]} 8. h4 {[%emt 0:00:19]} d6 {[%emt 0:01:51]} 9. c4 {[%emt 0:00:11]} Nb6 {[%emt 0:00:07]} 10. exd6 {[%emt 0:00:16]} Qxe2+ {[%emt 0:00:53]} 11. Bxe2 {[%emt 0:00:09]} cxd6 {[%emt 0:00:30]} 12. b3 {[%emt 0:06:31]} Be7 {[%emt 0:01:59]} 13. Bb2 {[%emt 0:00:35]} O-O {[%emt 0:00:32]} 14. Nd2 {[%emt 0:06:14]} Re8 {[%emt 0:03:29]} 15. O-O-O {[%emt 0:02:33]} Be6 {[%emt 0:06:48]} 16. Nf3 {[%emt 0:06:48]} d5 {[%emt 0:01:26]} 17. Nd4 {[%emt 0:01:47]} Bc5 {[%emt 0:01:59]} 18. cxd5 {[%emt 0:18:10]} Bxd5 {[%emt 0:01:23]} 19. Bf3 {[%emt 0:01:43]} Bxd4 {[%emt 0:00:32]} 20. Rxd4 {[%emt 0:01:52]} Bxf3 {[%emt 0:00:45]} 21. gxf3 {[%emt 0:00:02]} Re2 {[%emt 0:00:39]} 22. h5 {[%emt 0:03:40]} Nd5 {[%emt 0:00:58]} 23. Rg4 {[%emt 0:07:04]} g6 {[%emt 0:12:56]} 24. Rgh4 {[%emt 0:01:28]} g5 {[%emt 0:00:46]} 25. Rg1 {[%emt 0:00:33]} h6 {[%emt 0:01:00]} 26. f4 {[%emt 0:06:30]} Nb4 {[%emt 0:05:01]} 27. Bf6 {[%emt 0:01:40]} Nd3+ {[%emt 0:01:42]} 28. Kb1 {[%emt 0:08:08]} Rxf2 {[%emt 0:11:27]} 29. fxg5 {[%emt 0:00:28]} hxg5 {[%emt 0:02:14]} 30. Bxg5 {[%emt 0:03:16]} Kh7 {[%emt 0:00:48]} 31. Be3 {[%emt 0:02:27]} Re2 {[%emt 0:01:40]} 32. Bd4 {[%emt 0:01:10]} Rd8 {[%emt 0:12:12]} 33. h6 {[%emt 0:08:55]} Re1+ {[%emt 0:00:41]} 34. Rxe1 {[%emt 0:00:23]} Nxe1 {[%emt 0:00:02]} 35. Bxa7 {[%emt 0:00:32]} Rd1+ {[%emt 0:01:01]} 36. Kb2 {[%emt 0:00:01]} Rd2+ {[%emt 0:00:25]} 37. Ka3 {[%emt 0:01:51]} Nc2+ {[%emt 0:01:31]} 38. Ka4 {[%emt 0:00:13]} Na1 {[%emt 0:00:35]} 39. Ka3 {[%emt 0:02:37]} Nc2+ {[%emt 0:00:04]} 40. Kb2 {[%emt 0:00:49]} Nb4+ {[%emt 0:02:23]} 41. Kc3 {[%emt 0:00:09]} Rxa2 {[%emt 0:00:03]} 42. Kxb4 {[%emt 0:00:18]} Rxa7 {[%emt 0:00:05]} 43. Kc5 {[%emt 0:00:38]} Ra3 {[%emt 0:02:29]} 44. Rh3 {[%emt 0:00:32]} Ra6 {[%emt 0:00:08]} 45. b4 {[%emt 0:00:26]} Ra4 {[%emt 0:01:43]} 46. Rh4 {[%emt 0:00:24]} Ra6 {[%emt 0:00:07]} 47. Rh3 {[%emt 0:01:58]} Ra4 {[%emt 0:00:17]} 48. Rh5 {[%emt 0:00:06]} Ra6 {[%emt 0:00:58]} 49. Rh4 {[%emt 0:00:55]} f5 {[%emt 0:16:21]} 50. Rf4 {[%emt 0:00:46]} Kg6 {[%emt 0:00:00]} 51. h7 {[%emt 0:00:14]} Ra8 {[%emt 0:00:00]} 52. Kxc6 {[%emt 0:07:23]} Rh8 {[%emt 0:00:00]} 53. b5 {[%emt 0:01:33]} Rxh7 {[%emt 0:00:00]} 54. b6 {[%emt 0:00:04]} Kg5 {[%emt 0:00:00]} 55. Rb4 {[%emt 0:00:10]} Rh6+ {[%emt 0:00:00]} 56. Kd5 {[%emt 0:01:31]} Rh8 {[%emt 0:00:00]} 57. b7 {[%emt 0:00:57]} Rb8 {[%emt 0:00:00]} 58. Kc6 {[%emt 0:00:33]} f4 {[%emt 0:00:00]} 59. Ra4 {[%emt 0:00:30]} f3 {[%emt 0:00:00]} 60. Ra8 {[%emt 0:00:11]} Rxb7 {[%emt 0:00:00]} 61. Kxb7 {[%emt 0:00:04]} Kg4 {[%emt 0:00:00]} 62. Kc6 {[%emt 0:00:46]} f2 {[%emt 0:00:00]} 63. Rf8 {[%emt 0:00:33]} Kg3 {[%emt 0:00:00]} 64. Kd5 {[%emt 0:00:06]} 1/2-1/2

[Event "Marshall CC FIDE Premier April 2024"]
[Site "New York"]
[Date "2024.04.14"]
[Round "4.5"]
[White "Lee, Rohan"]
[Black "Meduri, Aakaash"]
[Result "0-1"]
[ECO "C41"]
[WhiteElo "1913"]
[BlackElo "1962"]
[Annotator "TA"]
[PlyCount "122"]
[EventDate "2024.02.02"]
[EventType "swiss"]
[EventCountry "USA"]
[SourceTitle "playchess.com"]
[Source "ChessBase"]
[SourceQuality "1"]
[TimeControl "5400+30"]

{[%evp 9,122,20,47,-18,1,-45,-39,-43,-23,-39,21,-41,-43,-39,-39,-35,-36,-61,-8,-17,-11,-17,-13,-27,0,0,6,0,31,-16,-8,-92,0,18,6,-14,-12,-5,26,2,16,-191,-183,-185,-143,-139,-171,-161,-110,-96,-63,-174,-172,-175,-115,-221,-226,-227,-235,-214,-213,-207,-181,-252,-252,-244,-244,-228,-209,-311,-156,-372,-372,-354,-359,-503,-502,-566,-452,-514,-402,-430,-430,-430,-430,-430,-430,-442,-385,-423,-415,-670,-645,-620,-612,-593,-535,-636,-454,-29975,-29973,-29980,-29979,-29982,-29983,-29983,-29981,-29982,-29983,-29995,-29996,-29997,-29998,-29998,-29999]} 1. e4 {[%emt 0:00:01]} d6 {[%emt 0:16:34]} 2. d4 {[%emt 0:00:09]} Nf6 {[%emt 0:00:09]} 3. Nc3 {[%emt 0:00:06]} e5 {[%emt 0:01:00]} 4. Nf3 {[%emt 0:00:07]} Nbd7 {[%emt 0:00:15]} 5. Be2 {[%emt 0:00:56]} Be7 {[%emt 0:01:58]} 6. h4 {[%emt 0:00:42]} (6. a4 $14) 6... c6 {[%emt 0:07:12]} 7. Be3 {[%emt 0:06:38]} (7. O-O $11) 7... b5 $15 {[%emt 0:04:05]} 8. a3 {[%emt 0:06:20] Black is slightly better.} Qc7 {[%emt 0:03:01]} 9. h5 {[%emt 0:06:29]} Ng4 {[%emt 0:02:53]} (9... h6 $15) 10. Qd2 {[%emt 0:03:53]} (10. Bg5 $11) 10... h6 {[%emt 0:01:17]} 11. d5 {[%emt 0:09:07]} a6 {[%emt 0:02:30]} 12. dxc6 {[%emt 0:01:44]} Qxc6 {[%emt 0:00:23]} 13. a4 {[%emt 0:00:31]} bxa4 {[%emt 0:01:00]} ({Black should try} 13... b4 $15 14. Nd5 Ndf6) 14. Rxa4 $11 {[%emt 0:00:38]} Nxe3 {[%emt 0:00:53]} 15. Qxe3 {[%emt 0:01:24]} Nc5 {[%emt 0:00:57]} 16. Ra3 {[%emt 0:05:21]} Bb7 {[%emt 0:01:17][%cal Rc5e4]} 17. b4 {[%emt 0:02:22]} Ne6 {[%emt 0:08:13]} (17... Nxe4 $6 18. b5 Qc5 (18... axb5 $2 19. Rxa8+ Bxa8 20. Bxb5 $18) 19. Nxe4 $16) 18. O-O {[%emt 0:09:55]} Nc7 {[%emt 0:04:00]} 19. Ra5 {[%emt 0:09:36]} (19. Nd2 $14 {might be stronger.}) 19... O-O {[%emt 0:01:56]} 20. Nd5 {[%emt 0:01:26]} (20. Nd2 $11 {remains equal.}) 20... Bd8 {[%emt 0:03:34]} (20... Nxd5 $17 21. exd5 Qxc2) 21. c4 {[%emt 0:03:13]} Nxd5 {[%emt 0:01:55]} 22. Rxd5 {[%emt 0:00:40]} Qc7 {[%emt 0:01:27]} 23. Rd2 {[%emt 0:30:42]} f5 {[%emt 0:01:09]} 24. exf5 {[%emt 0:00:00] Black must now prevent c5.} e4 $1 {[%emt 0:01:23] [#]} 25. c5 $2 {[%emt 0:00:00]} exf3 $19 {[%emt 0:04:29]} 26. Bxf3 {[%emt 0:00:00]} Bxf3 {[%emt 0:03:30]} (26... Rxf5 27. Qe6+ Rf7 (27... Qf7 28. Qxf7+ Rxf7 29. c6 $16) 28. c6 Bxc6 29. Rc2 $16 (29. Qxd6 $2 Qxd6 30. Rxd6 Bxf3 $19)) 27. Qxf3 {[%emt 0:00:00]} Rb8 {[%emt 0:00:36]} 28. Rxd6 {[%emt 0:00:00]} Qf7 {[%emt 0:02:22]} (28... Rxb4 $19 29. Qd5+ Kh8) 29. Rfd1 $17 {[%emt 0:00:00]} Bf6 {[%emt 0:01:21]} (29... Qxf5 $2 30. Qxf5 (30. Rxa6 $2 Qxf3 31. gxf3 Rxb4 $19) 30... Rxf5 31. Rxd8+ Rf8 32. Rxb8 Rxb8 33. Rd7 $18 (33. Rd4 Rc8 $18)) 30. Rd7 {[%emt 0:00:00]} (30. Qe4 $1 $15) 30... Qc4 $19 {[%emt 0:00:33]} 31. Rb7 {[%emt 0:00:00]} Rbd8 {[%emt 0:01:20]} (31... Kh7 $19 32. Re1 Rxb7 33. Qxb7 a5 34. bxa5 Qxc5) 32. Rbd7 {[%emt 0:00:00]} (32. g3 $17) 32... Rxd7 {[%emt 0:01:27]} ({Don't do} 32... Qxb4 33. Rxd8 Bxd8 34. Qd5+ Kh8 35. Qd6) 33. Rxd7 {[%emt 0:00:00]} Qxb4 {[%emt 0:01:34]} 34. c6 {[%emt 0:00:00]} Re8 {[%emt 0:00:32]} 35. g3 {[%emt 0:00:00]} Qb5 {[%emt 0:08:54]} 36. Kh2 {[%emt 0:03:16]} (36. Ra7 $142 Kh7 37. c7) 36... Rc8 {[%emt 0:03:36]} 37. Rd6 {[%emt 0:00:27]} Qc5 {[%emt 0:01:16]} 38. Re6 {[%emt 0:01:16]} a5 {[%emt 0:00:53] aiming for ...a4.} 39. Kg2 {[%emt 0:01:07]} (39. Qe4 {was forced.} Kf8 (39... Qxf2+ 40. Kh3 $11) 40. Kg2) 39... Kh7 {[%emt 0:02:56]} (39... Qc4 $19 {Threatens to win with ...a4.} 40. Kh2 Kh7) 40. Qb3 $2 {[%emt 0:01:13]} (40. Qg4 $17 {was the only chance.}) 40... Qxf5 {[%emt 0:02:10][%cal Of6d4]} (40... Rxc6 $2 {is the wrong capture.} 41. Re8 Qc4 42. Qb8 Qd5+ 43. Kh2 $18) 41. Qc4 {[%emt 0:00:31]} Qxh5 {[%emt 0:01:03]} 42. c7 {[%emt 0:00:14]} (42. Re4 {only move.}) 42... Qf7 {[%emt 0:00:33]} 43. Qc2+ {[%emt 0:00:49]} Kg8 {[%emt 0:00:51]} 44. Rc6 {[%emt 0:00:17] [#]} a4 $1 {[%emt 0:01:40]} 45. Qxa4 {[%emt 0:00:43]} (45. Ra6 Qxc7) 45... Rxc7 {[%emt 0:00:32]} 46. Qa8+ {[%emt 0:00:07]} Kh7 {[%emt 0:00:15] ( -> ...Qd5+)} 47. Rb6 {[%emt 0:00:30]} Rd7 {[%emt 0:00:34] Strongly threatening ...Bd4.} 48. Qe4+ {[%emt 0:00:22]} Qg6 {[%emt 0:00:18]} 49. Qe2 {[%emt 0:01:08]} Re7 {[%emt 0:00:30]} 50. Re6 {[%emt 0:00:26]} (50. Qc4 $142) 50... Rxe6 {[%emt 0:00:35]} 51. Qxe6 {[%emt 0:00:01]} Bg5 {[%emt 0:00:37]} 52. Qc4 {[%emt 0:00:14]} h5 {[%emt 0:00:17]} 53. f3 {[%emt 0:00:20]} h4 {[%emt 0:00:42]} 54. g4 {[%emt 0:00:23]} (54. gxh4 $19 Bxh4+ 55. Kf1) 54... Qd6 {[%emt 0:01:09] Black mates.} 55. Qe4+ {[%emt 0:00:55]} g6 {[%emt 0:00:44]} 56. Qb7+ {[%emt 0:00:04]} Kh6 {[%emt 0:00:26]} 57. Qa8 {[%emt 0:00:41]} Bf6 {[%emt 0:00:34]} 58. Qe4 {[%emt 0:01:48]} Qe5 {[%emt 0:00:41]} 59. Qa8 {[%emt 0:00:34]} Qe2+ {[%emt 0:00:23]} 60. Kh3 {[%emt 0:00:33]} Qf1+ {[%emt 0:00:13]} 61. Kh2 {[%emt 0:00:18]} Be5+ {[%emt 0:00:10] Weighted Error Value: White=0.48/Black=0.26 (precise) .  Loses game:     	White=2     	---        Mistake:       	White=11    	Black=6      Inaccurate:     	---       	Black=3      OK:         	White=8     	Black=17     Best:        	White=2     	Black=4      Strong:       	---       	Black=1} 0-1